fUST/lending_fUST_20250821
["ID","MTS","AMOUNT","RATE_DAILY","PERIOD"]
[380402527,1755740815933,300.0,0.00026,120]
[380402528,1755740835099,-185.818428,0.000199,2]
[380402529,1755740835122,-0.08409938,0.00020835,2]
[380402530,1755740836628,300.0,0.00026,120]
[380402531,1755740846348,151.0,0.00027397,120]
[380402532,1755740858230,300.0,0.00026,120]
[380402533,1755740875811,300.0,0.00026,120]
[380402534,1755740891545,300.0,0.00026,120]
[380402535,1755740920359,300.0,0.00026,120]
[380402536,1755740963246,300.0,0.00026,120]
[380402537,1755740969087,-430.62771899,0.000199,2]
[380402538,1755740969109,-430.62771886,0.00020835,2]
[380402539,1755740969132,-65.37766243,0.000209,2]
[380402540,1755740984650,300.0,0.00026,120]
[380402541,1755741007537,300.0,0.00026,120]
[380402542,1755741027704,300.0,0.00026,120]
[380402569,1755741031781,-100.71135365,0.000209,2]
[380402571,1755741031790,-430.62771886,0.00021771,2]
[380402573,1755741031800,-430.62771886,0.00022706,2]
[380402575,1755741031810,-167.02312293,0.0002299,2]
[380402577,1755741031819,-134.33606946,0.00023642,2]
[380402580,1755741031835,-296.2916494,0.00023642,2]
[380402582,1755741031844,-73.43154551,0.00023729,2]
[380402584,1755741031855,-225.23362339,0.00023729,2]
[380402586,1755741031864,-293.9452039,0.00023729,2]
[380402588,1755741031873,-1345.51059407,0.00023759,2]
[380402589,1755741031882,-173.0,0.00023772,2]
[380402590,1755741031891,-267.87370141,0.00023772,2]
[380402591,1755741031902,-32.12629859,0.00023772,2]
[380402593,1755741031911,-300.0,0.00023772,2]
[380402595,1755741031920,-3086.23496425,0.00023773,2]
[380402597,1755741031929,-901.20318355,0.00023773,2]
[380402599,1755741031938,-1345.51059407,0.00023791,2]
[380402601,1755741031949,-1187.21,0.000238,7]
[380402603,1755741031959,-199.0,0.0002384,10]
[380402605,1755741031969,-497.59,0.0002384,3]
[380402607,1755741031979,-248.79,0.0002384,3]
[380402609,1755741031988,-746.4,0.0002384,3]
[380402611,1755741031999,-816.96,0.0002384,10]
[380402613,1755741032008,-616.91,0.00023849,2]
[380402615,1755741032018,-835.87928376,0.0002385,2]
[380402616,1755741032026,-7166.87106884,0.0002385,2]
[380402663,1755741037665,-1071.305493,0.0002385,2]
[380402664,1755741037810,-142.74218862,0.0002385,2]
[380402665,1755741037821,-1072.02397009,0.0002385,2]
[380402666,1755741037832,-683.88842277,0.0002385,2]
[380402667,1755741037843,-908.23592004,0.0002385,2]
[380402668,1755741037861,-2108.39254201,0.0002385,2]
[380402671,1755741039714,-324491.42668775,0.0002385,2]
[380402672,1755741039726,-22591.07543839,0.0002385,2]
[380402708,1755741046139,-20.65583638,0.0002385,2]
[380402709,1755741061078,151.0,0.00027397,120]
[380402725,1755741324890,1156.01,0.0001919,2]
[380402798,1755741791464,159.468026,0.00013699,2]
[380402799,1755741941128,-245.90602121,0.000199,2]
[380402800,1755741991084,-280.97318443,0.000199,2]
[380402801,1755742039087,-2.66184066,0.000199,2]
[380402802,1755742039113,-164.7930614,0.00020835,2]
[380402803,1755742154120,-490.0,0.000199,2]
[380402805,1755742158079,-27.53590928,0.000199,2]
[380402806,1755742158102,-412.64359394,0.00020835,2]
[380402807,1755742208005,700.0,0.00027,120]
[380402816,1755742232056,-104.89231516,0.00020835,2]
[380402817,1755742232066,-549.57339787,0.00022564,2]
[380402818,1755742232112,-116.42660213,0.00022564,2]
[380402819,1755742232122,-517.5359091,0.00022706,2]
[380402820,1755742232131,-198.80347208,0.0002289,72]
[380402822,1755742232140,-92.77442435,0.0002299,2]
[380402882,1755742237964,-250.0,0.00022879,2]
[380402884,1755742237974,-2364.14960614,0.0002299,2]
[380402886,1755742237983,-1092.4443167,0.00023231,2]
[380402888,1755742237992,-13379.95307311,0.000236,2]
[380402892,1755742238017,-1116.52401178,0.000236,2]
[380402899,1755742240131,-68089.05291511,0.000236,2]
[380402900,1755742240140,-2183.31810187,0.00023627,2]
[380402901,1755742240150,-300.0,0.0002364,2]
[380402902,1755742240160,-943.0,0.0002364,2]
[380402903,1755742240170,-517.5359091,0.00023642,2]
[380402904,1755742240180,-2264.10087164,0.00023682,2]
[380402905,1755742240189,-39351.83530784,0.00023682,2]
[380402906,1755742240198,-1105.20931138,0.00023736,2]
[380402907,1755742240207,-288.48732053,0.00023737,2]
[380402908,1755742240216,-2661.28607418,0.00023773,2]
[380402909,1755742240225,-11098.92825786,0.00023836,3]
[380402910,1755742240234,-339.65047576,0.00023836,3]
[380402911,1755742240244,-1000.0,0.00023836,2]
[380402912,1755742240254,-1124.44659543,0.00023836,2]
[380402913,1755742240263,-151.0,0.00023836,2]
[380402914,1755742240273,-151.0,0.00023836,2]
[380402915,1755742240283,-19187.29552238,0.00023836,2]
[380402916,1755742240294,-151.0,0.00023836,2]
[380402917,1755742240304,-151.0,0.00023836,2]
[380402918,1755742240313,-300.0,0.00023836,2]
[380402919,1755742240322,-151.0,0.00023836,2]
[380402920,1755742240332,-151.0,0.00023836,2]
[380402922,1755742240341,-151.0,0.00023836,2]
[380402924,1755742240352,-300.0,0.00023836,2]
[380402926,1755742240361,-2000.0,0.00023836,2]
[380402928,1755742240371,-151.0,0.00023836,2]
[380402929,1755742240380,-300.0,0.00023836,2]
[380402930,1755742240390,-151.0,0.00023836,2]
[380402931,1755742240400,-2000.0,0.00023836,2]
[380402932,1755742240409,-151.0,0.00023836,2]
[380402933,1755742240418,-300.0,0.00023836,2]
[380402934,1755742240427,-151.0,0.00023836,2]
[380402935,1755742240436,-2000.0,0.00023836,2]
[380402936,1755742240445,-151.0,0.00023836,2]
[380402937,1755742240459,-151.0,0.00023836,2]
[380402938,1755742240468,-300.0,0.00023836,2]
[380402939,1755742240477,-151.0,0.00023836,2]
[380402940,1755742240486,-2000.0,0.00023836,2]
[380402942,1755742240495,-151.0,0.00023836,2]
[380402943,1755742240503,-151.0,0.00023836,2]
[380402944,1755742240513,-300.0,0.00023836,2]
[380402945,1755742240523,-2000.0,0.00023836,2]
[380402946,1755742240533,-151.0,0.00023836,2]
[380402947,1755742240543,-151.0,0.00023836,2]
[380402948,1755742240553,-151.0,0.00023836,2]
[380402949,1755742240563,-300.0,0.00023836,2]
[380402951,1755742240572,-151.0,0.00023836,2]
[380402953,1755742240581,-2000.0,0.00023836,2]
[380402955,1755742240590,-151.0,0.00023836,2]
[380402957,1755742240599,-151.0,0.00023836,2]
[380402958,1755742240609,-300.0,0.00023836,2]
[380402959,1755742240618,-292.93374415,0.00023836,2]
[380402960,1755742240627,-2000.0,0.00023836,2]
[380402961,1755742240636,-151.0,0.00023836,2]
[380402962,1755742240646,-151.0,0.00023836,2]
[380402963,1755742240655,-300.0,0.00023836,2]
[380402964,1755742240664,-2000.0,0.00023836,2]
[380402965,1755742240673,-151.0,0.00023836,2]
[380402966,1755742240682,-151.0,0.00023836,2]
[380402967,1755742240691,-2000.0,0.00023836,2]
[380402968,1755742240701,-300.0,0.00023836,2]
[380402969,1755742240710,-151.0,0.00023836,2]
[380402970,1755742240719,-153.79943989,0.00023836,2]
[380402971,1755742240728,-2000.0,0.00023836,2]
[380402972,1755742240737,-300.0,0.00023836,2]
[380402973,1755742240746,-151.0,0.00023836,2]
[380402974,1755742240756,-2000.0,0.00023836,2]
[380402975,1755742240765,-300.0,0.00023836,2]
[380402976,1755742240778,-151.0,0.00023836,2]
[380402977,1755742240787,-2000.0,0.00023836,2]
[380402978,1755742240796,-300.0,0.00023836,2]
[380402979,1755742240805,-151.0,0.00023836,2]
[380402980,1755742240815,-2000.0,0.00023836,2]
[380402981,1755742240824,-151.0,0.00023836,2]
[380402982,1755742240833,-300.0,0.00023836,2]
[380402983,1755742240842,-2000.0,0.00023836,2]
[380402984,1755742240852,-151.0,0.00023836,2]
[380402985,1755742240861,-300.0,0.00023836,2]
[380402986,1755742240870,-2000.0,0.00023836,2]
[380402987,1755742240879,-151.0,0.00023836,2]
[380402988,1755742240888,-151.0,0.00023836,2]
[380402989,1755742240899,-151.0,0.00023836,2]
[380402990,1755742240908,-300.0,0.00023836,2]
[380402991,1755742240917,-300.0,0.00023836,2]
[380402992,1755742240926,-300.0,0.00023836,2]
[380402993,1755742240936,-300.0,0.00023836,2]
[380402994,1755742240945,-300.0,0.00023836,2]
[380402995,1755742240955,-302.76019441,0.00023836,2]
[380402996,1755742240965,-500.0,0.00023836,2]
[380402997,1755742240974,-510.44,0.0002384,3]
[380402998,1755742240983,-255.22,0.0002384,3]
[380402999,1755742240992,-765.68,0.0002384,3]
[380403000,1755742241002,-591.2,0.00023849,2]
[380403001,1755742241012,-417.93964188,0.0002385,2]
[380403002,1755742241022,-16490.58409581,0.0002385,2]
[380405626,1755742273165,1800.0,0.00027,120]
[380405693,1755742322360,1074.0,0.00027,120]
[380405694,1755742342285,800.0,0.00027,120]
[380405695,1755742383233,700.0,0.00027,120]
[380405696,1755742406512,277.6,0.00027333,120]
[380405697,1755742478480,2576.97,0.0001919,2]
[380405699,1755742550310,258.77591205,0.00019168,2]
[380405700,1755742642425,1000.0,0.00027,120]
[380405701,1755742769022,151.0,0.00027397,120]
[380405702,1755742825094,160.745765,0.00013699,2]
[380405707,1755743142122,-333.43753178,0.00019938,2]
[380405708,1755743149293,300.0,7.1e-07,120]
[380405709,1755743157335,300.0,7.1e-07,120]
[380405712,1755743317341,158.31426483,0.00027334,120]
[380405714,1755743325931,432.53553805,0.00027334,120]
[380405719,1755743353077,-448.53112122,0.000199,2]
[380405720,1755743353099,-76.57963087,0.00019938,2]
[380405791,1755743432275,-89.98283735,0.00019938,2]
[380405792,1755743432285,-500.0,0.00020987,2]
[380405793,1755743432294,-2082.44305992,0.00021001,5]
[380405794,1755743432303,-500.0,0.00022092,2]
[380405795,1755743432312,-168.0,0.00022812,2]
[380405796,1755743432322,-900.0,0.00023,2]
[380405798,1755743432331,-450.0,0.00023211,2]
[380405800,1755743432339,-546.22215835,0.00023231,2]
[380405802,1755743432347,-500.0,0.00023255,2]
[380405803,1755743432356,-168.0,0.0002328,2]
[380405805,1755743432365,-450.0,0.00023291,2]
[380405808,1755743432375,-450.0,0.00023548,2]
[380405809,1755743432385,-1102.60320276,0.00023635,2]
[380405810,1755743432394,-300.0,0.0002366,2]
[380405811,1755743432403,-450.0,0.0002366,2]
[380405812,1755743432413,-970.18506091,0.00023661,2]
[380405813,1755743432423,-168.0,0.00023715,2]
[380405814,1755743432431,-168.0,0.00023728,2]
[380405815,1755743432442,-171.45852611,0.00023735,2]
[380405816,1755743432451,-151.0,0.00023735,2]
[380405817,1755743432459,-151.0,0.00023735,2]
[380405818,1755743432468,-151.0,0.00023735,2]
[380405819,1755743432477,-151.0,0.00023735,2]
[380405820,1755743432486,-151.0,0.00023735,2]
[380405821,1755743432496,-155.82770908,0.00023735,2]
[380405983,1755743446360,-433.58008402,0.000199,2]
[380405984,1755743446369,-433.58008384,0.00020835,2]
[380405985,1755743446378,-87.72940597,0.00021771,2]
[380405986,1755743446390,-333.67086873,0.00021771,2]
[380406123,1755743524957,289.28695964,0.00027334,60]
[380406128,1755743597580,682.91245583,0.00027334,60]
[380406145,1755743773348,1000.8,0.0001919,2]
[380406147,1755743865863,161.24799,0.00013699,2]
[380406162,1755744332103,-181.24630208,0.00019701,2]
[380406163,1755744332127,-429.06627124,0.000199,2]
[380406164,1755744332149,-429.06627099,0.00020835,2]
[380406165,1755744332169,-429.06627099,0.00021771,2]
[380406166,1755744332189,-429.06627099,0.00022706,2]
[380406167,1755744332210,-384.64690508,0.00023134,2]
[380406168,1755744332230,-40.56181715,0.00023403,2]
[380406170,1755744364628,1000.0,7.1e-07,120]
[380406171,1755744373683,1000.0,7.1e-07,120]
[380406172,1755744380605,1000.0,7.1e-07,120]
[380406173,1755744388546,1000.0,7.1e-07,120]
[380406174,1755744396220,1000.0,7.1e-07,120]
[380406175,1755744403533,1000.0,7.1e-07,120]
[380406176,1755744410094,-192.32345254,0.00023134,2]
[380406177,1755744410120,-63.81032552,0.00023403,2]
[380406178,1755744412812,1000.0,7.1e-07,120]
[380406179,1755744420762,1000.0,7.1e-07,120]
[380406180,1755744428678,1000.0,7.1e-07,120]
[380406181,1755744436160,1000.0,7.1e-07,120]
[380406182,1755744443547,1000.0,7.1e-07,120]
[380406183,1755744452082,-400.56594954,0.000199,2]
[380406184,1755744452106,-400.56594945,0.00020835,2]
[380406185,1755744452151,-400.56594945,0.00021771,2]
[380406186,1755744452175,-400.56594945,0.00022706,2]
[380406187,1755744452196,-2660.34172342,0.0002299,2]
[380406188,1755744452218,-77.62785733,0.00023403,2]
[380406189,1755744452239,-539.0,0.00023534,2]
[380406190,1755744452260,-1527.56171143,0.00023535,2]
[380406191,1755744452281,-1200.0,0.00023557,2]
[380406192,1755744452301,-300.0,0.00023557,2]
[380406193,1755744452320,-300.0,0.00023558,2]
[380406194,1755744452340,-300.0,0.00023558,2]
[380406195,1755744452360,-1200.0,0.00023558,2]
[380406196,1755744452379,-2453.48236742,0.00023573,2]
[380406197,1755744452402,-825.77775153,0.00023573,2]
[380406198,1755744452423,-363.1870591,0.000236,2]
[380406199,1755744452445,-293.8392635,0.000236,2]
[380406200,1755744452466,-580.787823,0.000236,2]
[380406201,1755744452485,-10479.73392153,0.000236,2]
[380406202,1755744452504,-1348.23713885,0.00023635,2]
[380406203,1755744454701,1000.0,7.1e-07,120]
[380406204,1755744461874,1000.0,7.1e-07,120]
[380406205,1755744469052,1000.0,7.1e-07,120]
[380406225,1755744632454,-362.35524206,0.000199,2]
[380406226,1755744632464,-362.35524184,0.00020835,2]
[380406227,1755744632473,-362.35524184,0.00021771,2]
[380406228,1755744632482,-362.35524184,0.00022706,2]
[380406229,1755744632491,-192.32345255,0.00023134,2]
[380406230,1755744632501,-311.65872035,0.00023548,2]
[380406231,1755744632511,-311.65872033,0.00023555,2]
[380406232,1755744632520,-311.65872033,0.00023561,2]
[380406233,1755744632529,-300.0,0.00023572,2]
[380406234,1755744632539,-8652.50595885,0.00023573,2]
[380406235,1755744632558,-1606.56374761,0.00023573,2]
[380406236,1755744632568,-6641.80448686,0.00023635,2]
[380406237,1755744632576,-151.0,0.00023635,2]
[380406238,1755744632586,-151.0,0.00023635,2]
[380406240,1755744632595,-19187.29552238,0.00023635,2]
[380406241,1755744632604,-151.0,0.00023635,2]
[380406242,1755744632613,-151.0,0.00023635,2]
[380406243,1755744632622,-151.0,0.00023635,2]
[380406244,1755744632632,-151.0,0.00023635,2]
[380406245,1755744632641,-151.0,0.00023635,2]
[380406247,1755744632650,-151.0,0.00023635,2]
[380406249,1755744632659,-151.0,0.00023635,2]
[380406251,1755744632668,-151.0,0.00023635,2]
[380406253,1755744632677,-151.0,0.00023635,2]
[380406255,1755744632686,-300.0,0.00023635,2]
[380406257,1755744632695,-151.0,0.00023635,2]
[380406259,1755744632705,-151.0,0.00023635,2]
[380406260,1755744632715,-151.0,0.00023635,2]
[380406261,1755744632726,-300.0,0.00023635,2]
[380406263,1755744632735,-151.0,0.00023635,2]
[380406265,1755744632744,-151.0,0.00023635,2]
[380406267,1755744632753,-151.0,0.00023635,2]
[380406269,1755744632762,-300.0,0.00023635,2]
[380406271,1755744632771,-151.0,0.00023635,2]
[380406273,1755744632781,-151.0,0.00023635,2]
[380406274,1755744632790,-151.0,0.00023635,2]
[380406276,1755744632799,-300.0,0.00023635,2]
[380406278,1755744632809,-151.0,0.00023635,2]
[380406280,1755744632818,-151.0,0.00023635,2]
[380406282,1755744632827,-151.0,0.00023635,2]
[380406284,1755744632837,-300.0,0.00023635,2]
[380406286,1755744632847,-151.0,0.00023635,2]
[380406288,1755744632856,-151.0,0.00023635,2]
[380406290,1755744632865,-151.0,0.00023635,2]
[380406292,1755744632874,-291.85742301,0.00023635,2]
[380406294,1755744632884,-151.0,0.00023635,2]
[380406296,1755744632893,-151.0,0.00023635,2]
[380406297,1755744632902,-300.0,0.00023635,2]
[380406298,1755744632911,-151.0,0.00023635,2]
[380406299,1755744632920,-151.0,0.00023635,2]
[380406300,1755744632929,-151.0,0.00023635,2]
[380406301,1755744632938,-151.0,0.00023635,2]
[380406302,1755744632947,-153.41333254,0.00023635,2]
[380406303,1755744632955,-151.0,0.00023635,2]
[380406304,1755744632964,-300.0,0.00023635,2]
[380406305,1755744632973,-151.0,0.00023635,2]
[380406306,1755744632983,-151.0,0.00023635,2]
[380406307,1755744632991,-300.0,0.00023635,2]
[380406308,1755744633000,-151.0,0.00023635,2]
[380406309,1755744633010,-151.0,0.00023635,2]
[380406310,1755744633019,-151.0,0.00023635,2]
[380406311,1755744633028,-300.0,0.00023635,2]
[380406312,1755744633040,-151.0,0.00023635,2]
[380406313,1755744633049,-151.0,0.00023635,2]
[380406314,1755744633057,-288.3171568,0.00023635,2]
[380406315,1755744633066,-693.22548346,0.00023635,2]
[380406316,1755744633075,-151.0,0.00023635,2]
[380406317,1755744633084,-151.0,0.00023635,2]
[380406318,1755744633093,-151.0,0.00023635,2]
[380406319,1755744633102,-151.0,0.00023635,2]
[380406320,1755744633112,-151.0,0.00023635,2]
[380406321,1755744633121,-151.0,0.00023635,2]
[380406322,1755744633130,-2183.31810187,0.00023635,2]
[380406323,1755744633139,-1000.0,0.00023635,2]
[380406324,1755744633149,-1000.0,0.00023635,2]
[380406325,1755744633158,-1000.0,0.00023635,2]
[380406326,1755744633169,-1000.0,0.00023635,2]
[380406327,1755744633185,-1000.0,0.00023635,2]
[380406328,1755744633196,-151.0,0.00023635,2]
[380406329,1755744633206,-151.0,0.00023635,2]
[380406330,1755744633221,-1000.0,0.00023635,2]
[380406331,1755744633234,-1000.0,0.00023635,2]
[380406332,1755744633244,-258.36694655,0.00023635,2]
[380406333,1755744633263,-1000.0,0.00023635,2]
[380406334,1755744633283,-1000.0,0.00023635,2]
[380406335,1755744633300,-219.52615819,0.00023635,2]
[380406336,1755744633310,-400.31,0.00023639,3]
[380406337,1755744633319,-494.26,0.00023639,3]
[380406338,1755744633462,-1119.28,0.00023639,3]
[380406339,1755744633472,-362.35524184,0.00023642,2]
[380406340,1755744633483,-208.96982094,0.00023648,2]
[380406341,1755744633494,-500.0,0.00023648,2]
[380406342,1755744633503,-593.1,0.00023648,2]
[380406343,1755744633513,-500.0,0.00023648,2]
[380406344,1755744633523,-500.0,0.00023648,2]
[380406345,1755744633532,-151.0,0.00023648,2]
[380406346,1755744633542,-500.0,0.00023648,2]
[380406347,1755744633550,-151.38425596,0.00023648,2]
[380406348,1755744633560,-151.82091174,0.00023648,2]
[380406349,1755744633570,-500.0,0.00023648,2]
[380406350,1755744633579,-301.98838403,0.00023648,2]
[380406351,1755744633588,-500.0,0.00023648,2]
[380406352,1755744633598,-500.0,0.00023648,2]
[380406353,1755744633608,-500.0,0.00023648,2]
[380406354,1755744633619,-307.41579158,0.00023648,2]
[380406355,1755744633628,-500.0,0.00023648,2]
[380406356,1755744633638,-500.0,0.00023648,2]
[380406357,1755744633648,-500.0,0.00023648,2]
[380406358,1755744633657,-500.0,0.00023648,2]
[380406359,1755744633667,-500.0,0.00023648,2]
[380406360,1755744633677,-500.0,0.00023648,2]
[380406361,1755744633686,-500.0,0.00023648,2]
[380406362,1755744633696,-500.0,0.00023648,2]
[380406363,1755744633706,-500.0,0.00023648,2]
[380406364,1755744633716,-610.31244308,0.00023648,2]
[380406365,1755744633727,-500.0,0.00023648,2]
[380406366,1755744633737,-500.0,0.00023648,2]
[380406367,1755744633746,-605.97837692,0.00023648,2]
[380406368,1755744633756,-500.0,0.00023648,2]
[380406369,1755744633767,-500.0,0.00023648,2]
[380406370,1755744633776,-500.0,0.00023648,2]
[380406371,1755744633786,-500.0,0.00023648,2]
[380406372,1755744633795,-500.0,0.00023648,2]
[380406373,1755744633805,-539.78775293,0.00023648,2]
[380406374,1755744633815,-500.0,0.00023648,2]
[380406375,1755744633824,-500.0,0.00023648,2]
[380406376,1755744633834,-500.0,0.00023648,2]
[380406377,1755744633844,-500.0,0.00023648,2]
[380406378,1755744633853,-500.0,0.00023648,2]
[380406379,1755744633864,-500.0,0.00023648,2]
[380406380,1755744633873,-503.16883757,0.00023648,2]
[380406381,1755744633881,-500.0,0.00023648,2]
[380406382,1755744633890,-500.0,0.00023648,2]
[380406383,1755744633898,-500.0,0.00023648,2]
[380406384,1755744633906,-500.0,0.00023648,2]
[380406385,1755744633915,-500.0,0.00023648,2]
[380406386,1755744633925,-500.0,0.00023648,2]
[380406387,1755744633934,-500.0,0.00023648,2]
[380406388,1755744633944,-500.0,0.00023648,2]
[380406389,1755744633954,-500.0,0.00023648,2]
[380406390,1755744633964,-500.0,0.00023648,2]
[380406391,1755744633973,-500.0,0.00023648,2]
[380406392,1755744633983,-171.3236431,0.00023648,2]
[380406393,1755744633993,-500.0,0.00023648,2]
[380406394,1755744634004,-500.0,0.00023648,2]
[380406395,1755744634014,-500.0,0.00023648,2]
[380406396,1755744634025,-205.36546916,0.00023648,2]
[380406397,1755744634035,-500.0,0.00023648,2]
[380406398,1755744634045,-500.0,0.00023648,2]
[380406399,1755744634055,-519.03597142,0.00023648,2]
[380406400,1755744634064,-504.08950983,0.00023648,2]
[380406401,1755744634074,-500.0,0.00023648,2]
[380406402,1755744634086,-310.87034623,0.00023648,2]
[380406403,1755744634096,-500.0,0.00023648,2]
[380406404,1755744634116,-500.0,0.00023648,2]
[380406405,1755744634129,-549.31967501,0.00023648,2]
[380406406,1755744634139,-500.0,0.00023648,2]
[380406407,1755744634149,-500.0,0.00023648,2]
[380406408,1755744634159,-500.0,0.00023648,2]
[380406409,1755744634170,-270.18419753,0.00023648,2]
[380406410,1755744634185,-500.0,0.00023648,2]
[380406411,1755744634194,-500.0,0.00023648,2]
[380406412,1755744634205,-500.0,0.00023648,2]
[380406413,1755744634216,-500.0,0.00023648,2]
[380406414,1755744634226,-500.0,0.00023648,2]
[380406415,1755744634236,-500.0,0.00023648,2]
[380406416,1755744634245,-500.0,0.00023648,2]
[380406417,1755744634256,-500.0,0.00023648,2]
[380406418,1755744634266,-500.0,0.00023648,2]
[380406419,1755744634275,-500.0,0.00023648,2]
[380406420,1755744634285,-500.0,0.00023648,2]
[380406421,1755744634294,-500.0,0.00023648,2]
[380406422,1755744634303,-500.0,0.00023648,2]
[380406423,1755744634312,-500.0,0.00023648,2]
[380406424,1755744634323,-500.0,0.00023648,2]
[380406425,1755744634340,-500.0,0.00023648,2]
[380406426,1755744634353,-324.28901087,0.00023648,2]
[380406427,1755744634362,-500.0,0.00023648,2]
[380406428,1755744634371,-500.0,0.00023648,2]
[380406429,1755744634381,-500.0,0.00023648,2]
[380406430,1755744634391,-500.0,0.00023648,2]
[380406431,1755744634401,-500.0,0.00023648,2]
[380406432,1755744634411,-500.0,0.00023648,2]
[380406433,1755744634421,-396.11883567,0.00023648,2]
[380406434,1755744634430,-516.89140403,0.00023648,2]
[380406435,1755744634440,-270.02834826,0.00023648,2]
[380406436,1755744634449,-2596.075,0.00023649,4]
[380406437,1755744634458,-179.527,0.00023649,4]
[380406438,1755744634468,-155.896312,0.00023649,7]
[380406439,1755744634477,-163.32707,0.00023649,7]
[380406440,1755744634486,-151.0,0.00023649,7]
[380406441,1755744634495,-151.0,0.00023649,7]
[380406442,1755744634506,-151.0,0.00023649,7]
[380406443,1755744634515,-151.0,0.00023649,7]
[380406444,1755744634524,-151.0,0.00023649,7]
[380406445,1755744634534,-151.0,0.00023649,7]
[380406446,1755744634544,-151.0,0.00023649,7]
[380406447,1755744634553,-171.749523,0.00023649,7]
[380406448,1755744634563,-171.749523,0.00023649,7]
[380406449,1755744634572,-171.749523,0.00023649,7]
[380406450,1755744634581,-171.749523,0.00023649,7]
[380406451,1755744634590,-151.0,0.00023649,7]
[380406452,1755744634600,-151.0,0.00023649,7]
[380406453,1755744634609,-151.0,0.00023649,7]
[380406454,1755744634618,-158.078588,0.00023649,7]
[380406455,1755744634628,-151.0,0.00023649,7]
[380406456,1755744634637,-151.0,0.00023649,7]
[380406457,1755744634646,-152.098079,0.00023649,7]
[380406458,1755744634655,-151.0,0.00023649,7]
[380406459,1755744634664,-151.0,0.00023649,7]
[380406460,1755744634673,-151.0,0.00023649,7]
[380406461,1755744634682,-151.0,0.00023649,7]
[380406462,1755744634691,-574.031705,0.00023649,7]
[380406463,1755744634700,-574.031705,0.00023649,7]
[380406464,1755744634709,-574.031705,0.00023649,7]
[380406465,1755744634718,-151.0,0.00023649,7]
[380406466,1755744634728,-574.031705,0.00023649,7]
[380406467,1755744634738,-151.0,0.00023649,7]
[380406468,1755744634747,-151.0,0.00023649,7]
[380406469,1755744634757,-151.335716,0.00023649,7]
[380406470,1755744634766,-151.0,0.00023649,7]
[380406471,1755744634777,-151.0,0.00023649,7]
[380406472,1755744634786,-151.0,0.00023649,7]
[380406473,1755744634795,-152.137969,0.00023649,7]
[380406474,1755744634804,-151.0,0.00023649,7]
[380406475,1755744634813,-15674.50049849,0.00023649,2]
[380406476,1755744635054,-2894.648935,0.00023649,2]
[380406480,1755744638473,-151.0,0.00023635,2]
[380406482,1755744638484,-799.13,0.00023638,10]
[380406483,1755744638493,-351430.85056651,0.00023649,2]
[380406484,1755744638502,-10259.06970646,0.00023661,2]
[380406485,1755744638511,-500.0,0.00023673,2]
[380406486,1755744638519,-500.0,0.00023673,2]
[380406487,1755744638528,-500.0,0.00023673,2]
[380406488,1755744638536,-500.0,0.00023673,2]
[380406489,1755744638546,-504.0734374,0.00023673,2]
[380406490,1755744638555,-501.70451266,0.00023673,2]
[380406491,1755744638563,-501.1800855,0.00023673,2]
[380406492,1755744638572,-500.0,0.00023673,2]